bitfinex/quotes_SOLUSD_20230104
["timestamp","ask_amount","ask_price","bid_price","bid_amount"]
[1672793674580,55.2,13.599,13.578,19.269547]
[1672793674797,3.16876315,13.598,13.578,19.269547]
[1672793674994,9.05,13.59,13.578,19.269547]
[1672793675544,3.16876315,13.589,13.578,19.269547]
[1672793675944,9.05,13.59,13.578,19.269547]
[1672793676151,55.2,13.599,13.578,19.269547]
[1672793676480,3.16876315,13.595,13.578,19.269547]
[1672793676904,9.03,13.6,13.579,30.0]
[1672793677224,9.03,13.6,13.58,55.28]
[1672793677428,3.16876315,13.599,13.58,55.28]
[1672793677621,3.16876315,13.599,13.581,146.8804]
[1672793678483,55.17,13.605,13.581,146.8804]
[1672793678797,3.16876315,13.6,13.582,55.27]
[1672793678992,55.16,13.609,13.583,30.0]
[1672793679199,3.16876315,13.608,13.583,30.0]
[1672793679408,55.17,13.607,13.583,30.0]
[1672793679632,55.17,13.607,13.584,55.26]
[1672793679844,3.16876315,13.606,13.583,30.0]
[1672793680039,9.05,13.6,13.581,116.8804]
[1672793680257,55.2,13.599,13.581,116.8804]
[1672793680466,58.36876315,13.599,13.581,116.8804]
[1672793680676,3.16876315,13.598,13.581,116.8804]
[1672793680885,55.21,13.597,13.581,116.8804]
[1672793681107,3.16876315,13.598,13.581,116.8804]
[1672793681302,3.16876315,13.596,13.581,116.8804]
[1672793682158,3.16876315,13.596,13.582,30.0]
[1672793682359,9.1,13.6,13.582,30.0]
[1672793682565,12.26876315,13.6,13.582,30.0]
[1672793683399,55.2,13.599,13.581,116.8804]
[1672793683828,45.56,13.59,13.579,6.16146372]
[1672793684039,55.24,13.589,13.579,6.16146372]
[1672793684258,58.40876315,13.589,13.579,6.16146372]
[1672793684479,3.16876315,13.588,13.579,6.16146372]
[1672793684789,3.16876315,13.588,13.578,19.26954698]
[1672793684982,45.56,13.59,13.578,19.26954698]
[1672793685195,45.54,13.6,13.578,19.26954698]
[1672793685402,3.16876315,13.591,13.578,19.26954698]
[1672793685737,9.1,13.59,13.578,19.26954698]
[1672793686137,3.16876315,13.589,13.578,19.26954698]
[1672793687627,55.24,13.588,13.578,19.26954698]
[1672793687945,3.16876315,13.587,13.578,19.26954698]
[1672793688134,55.25,13.586,13.578,19.26954698]
[1672793688468,3.16876315,13.585,13.578,19.26954698]
[1672793689823,19.62120432,13.585,13.578,19.26954698]
[1672793690029,30.0,13.583,13.578,19.26954698]
[1672793690234,55.27,13.582,13.578,19.26954698]
[1672793690448,58.43876315,13.582,13.578,19.26954698]
[1672793690664,3.16876315,13.581,13.578,19.26954698]
[1672793691415,55.26,13.584,13.578,19.26954698]
[1672793691629,3.16876315,13.583,13.578,19.26954698]
[1672793692033,18.10528776,13.583,13.578,19.26954698]
[1672793692248,55.27,13.582,13.578,19.26954698]
[1672793692460,30.0,13.581,13.578,19.26954698]
[1672793692669,55.28,13.58,13.578,19.26954698]
[1672793692881,89.83282195,13.58,13.578,19.26954698]
[1672793693195,3.16876315,13.579,13.578,19.26954698]
[1672793693406,58.44876315,13.579,13.578,19.26954698]
[1672793694566,73.38528776,13.579,13.578,19.26954698]
[1672793694776,89.83282195,13.579,13.578,19.26954698]
[1672793695514,58.44876315,13.579,13.578,19.26954698]
[1672793695731,31.3840588,13.584,13.578,19.26954698]
[1672793695931,3.16876315,13.579,13.578,19.26954698]
[1672793696557,58.44876315,13.579,13.578,19.26954698]
[1672793696778,3.16876315,13.579,13.578,19.26954698]
[1672793698442,45.61,13.59,13.578,19.26954698]
[1672793698880,3.16876315,13.582,13.578,19.26954698]
[1672793700468,55.24,13.589,13.578,19.26954698]
[1672793700651,3.16876315,13.589,13.578,19.26954698]
[1672793701504,55.24,13.588,13.578,19.26954698]
[1672793701928,3.16876315,13.587,13.578,19.26954698]
[1672793702352,33.16876315,13.587,13.578,19.26954698]
[1672793702563,70.18652461,13.586,13.578,19.26954698]
[1672793702774,30.0,13.585,13.578,19.26954698]
[1672793702989,30.0,13.583,13.578,19.26954698]
[1672793703208,55.27,13.582,13.578,4.33302237]
[1672793703531,30.0,13.581,13.578,4.33302237]
[1672793703838,55.28,13.58,13.578,4.33302237]
[1672793704047,58.44876315,13.58,13.578,4.33302237]
[1672793704259,3.16876315,13.58,13.578,4.33302237]
[1672793704450,3.16876315,13.58,13.578,0.00302237]
[1672793704874,55.28,13.579,13.578,0.00302237]
[1672793705293,58.44876315,13.579,13.578,0.00302237]
[1672793706136,3.16876315,13.579,13.578,0.00302237]
[1672793706461,55.25,13.587,13.578,0.00302237]
[1672793706659,31.3840588,13.581,13.578,0.00302237]
[1672793707091,3.16876315,13.58,13.578,0.00302237]
[1672793707713,55.28,13.579,13.578,0.00302237]
[1672793708154,58.44876315,13.579,13.578,0.00302237]
[1672793708341,3.16876315,13.579,13.578,0.00302237]
[1672793712337,46.4,13.59,13.578,0.00302237]
[1672793712549,3.16876315,13.584,13.578,0.00302237]
[1672793712772,31.3840588,13.582,13.578,0.00302237]
[1672793713204,3.16876315,13.581,13.578,0.00302237]
[1672793713717,31.3840588,13.587,13.578,0.00302237]
[1672793714248,3.16876315,13.586,13.578,0.00302237]
[1672793714954,31.3840588,13.585,13.578,0.00302237]
[1672793715169,9.24,13.59,13.578,0.00302237]
[1672793715379,3.16876315,13.589,13.578,0.00302237]
[1672793716231,9.24,13.59,13.578,0.00302237]
[1672793716864,1.8479513,13.603,13.578,0.00302237]
[1672793716865,46.48,13.6,13.578,0.00302237]
[1672793717086,3.16876315,13.594,13.578,0.00302237]
[1672793717504,9.29,13.59,13.578,0.00302237]
[1672793717923,3.16876315,13.589,13.578,0.00302237]
[1672793718459,46.45,13.59,13.578,0.00302237]
[1672793718774,3.16876315,13.589,13.578,0.00302237]
[1672793718987,9.33,13.59,13.578,0.00302237]
[1672793719402,3.16876315,13.589,13.578,0.00302237]
[1672793719825,55.24,13.588,13.578,0.00302237]
[1672793720255,3.16876315,13.587,13.578,0.00302237]
[1672793720444,46.49,13.59,13.578,0.00302237]
[1672793720445,55.24,13.589,13.578,0.00302237]
[1672793720662,9.33,13.59,13.578,0.00302237]
[1672793721082,12.49876315,13.59,13.578,0.00302237]
[1672793721510,9.33,13.59,13.578,0.00302237]
[1672793721827,3.16876315,13.593,13.578,0.00302237]
[1672793722025,3.16876315,13.589,13.578,0.00302237]
[1672793722236,30.0,13.588,13.578,0.00302237]
[1672793722441,55.25,13.587,13.578,0.00302237]
[1672793722650,3.16876315,13.587,13.578,0.00302237]
[1672793722868,55.25,13.586,13.578,0.00302237]
[1672793723087,55.24,13.589,13.578,0.00302237]
[1672793723696,49.66876315,13.59,13.578,0.00302237]
[1672793723904,3.16876315,13.588,13.578,0.00302237]
[1672793724116,55.25,13.587,13.578,0.00302237]
[1672793724326,46.49,13.59,13.578,0.00302237]
[1672793724538,3.16876315,13.588,13.578,0.00302237]
[1672793724970,55.25,13.587,13.578,0.00302237]
[1672793725374,3.16876315,13.586,13.578,0.00302237]
[1672793725589,55.26,13.585,13.578,0.00302237]
[1672793726115,55.24,13.589,13.578,0.00302237]
[1672793726332,58.40876315,13.589,13.578,0.00302237]
[1672793726560,3.16876315,13.588,13.578,0.00302237]
[1672793726852,55.25,13.587,13.578,0.00302237]
[1672793727392,3.16876315,13.586,13.578,0.00302237]
[1672793727608,55.26,13.585,13.578,0.00302237]
[1672793728339,3.16876315,13.587,13.578,0.00302237]
[1672793728534,55.25,13.586,13.578,0.00302237]
[1672793729385,9.33,13.59,13.578,0.00302237]
[1672793729908,12.49876315,13.59,13.578,0.00302237]
[1672793730739,9.33,13.59,13.578,0.00302237]
[1672793731494,3.16876315,13.589,13.578,0.00302237]
[1672793732731,46.37,13.6,13.578,0.00302237]
[1672793732965,3.16876315,13.598,13.578,0.00302237]
[1672793733702,55.21,13.597,13.578,0.00302237]
[1672793734944,58.37876315,13.597,13.578,0.00302237]
[1672793735157,55.21,13.597,13.578,0.00302237]
[1672793735374,55.2,13.599,13.579,55.28]
[1672793735584,55.2,13.599,13.58,30.0]
[1672793735796,3.16876315,13.6,13.582,30.0]
[1672793736005,55.2,13.599,13.584,30.0]
[1672793737787,3.16876315,13.598,13.583,117.6955]
[1672793738002,55.21,13.597,13.583,117.6955]
[1672793739680,3.16876315,13.598,13.583,117.6955]
[1672793739877,2.67910132,13.603,13.585,30.0]
[1672793740087,2.67910132,13.603,13.586,75.25]
[1672793740510,2.67910132,13.603,13.587,30.0]
[1672793740724,2.67910132,13.603,13.589,30.0]
[1672793742212,2.67910132,13.603,13.59,55.24]
[1672793742424,2.67910132,13.603,13.591,30.0]
[1672793742740,2.67910132,13.603,13.593,30.0]
[1672793744103,58.35876315,13.602,13.591,119.61603404]
[1672793744507,3.16876315,13.601,13.591,119.61603404]
[1672793744733,55.19,13.6,13.591,119.61603404]
[1672793745984,3.16876315,13.599,13.591,119.61603404]
[1672793746194,55.2,13.598,13.591,119.61603404]
[1672793746520,58.36876315,13.598,13.591,0.45563404]
[1672793746735,3.16876315,13.598,13.591,0.45563404]
[1672793747055,55.21,13.597,13.591,0.45563404]
[1672793747576,3.16876315,13.596,13.591,0.45563404]
[1672793747766,55.22,13.595,13.58,118.1054]
[1672793747985,9.29,13.59,13.58,118.1054]
[1672793748188,55.24,13.589,13.58,118.1054]
[1672793748401,3.16876315,13.589,13.581,30.0]
[1672793748606,9.33,13.6,13.581,30.0]
[1672793748816,3.16876315,13.599,13.581,30.0]
[1672793749026,55.2,13.598,13.581,30.0]
[1672793749457,3.16876315,13.597,13.581,30.0]
[1672793749673,3.16876315,13.597,13.581,85.27]
[1672793749872,55.2,13.599,13.581,85.27]
[1672793750206,3.16876315,13.598,13.581,30.0]
[1672793750822,55.2,13.599,13.581,30.0]
[1672793751133,9.3,13.6,13.581,85.27]
[1672793751341,2.67910132,13.603,13.581,85.27]
[1672793751554,2.67910132,13.603,13.583,30.0]
[1672793751768,2.67910132,13.603,13.585,30.0]
[1672793751981,2.67910132,13.603,13.586,55.25]
[1672793752182,2.67910132,13.603,13.587,30.0]
[1672793752606,2.67910132,13.603,13.589,30.0]
[1672793753545,2.67910132,13.603,13.588,111.0767]
[1672793753776,9.29,13.6,13.588,111.0767]
[1672793753986,3.16876315,13.602,13.589,30.0]
[1672793754192,3.16876315,13.6,13.589,30.0]
[1672793754617,2.67910132,13.603,13.589,30.0]
[1672793754942,2.67910132,13.603,13.59,55.24]
[1672793755139,9.29,13.6,13.588,111.0767]
[1672793755359,55.2,13.599,13.588,111.0767]
[1672793755546,58.36876315,13.599,13.588,111.0767]
[1672793755764,3.16876315,13.598,13.588,111.0767]
[1672793755998,55.21,13.597,13.588,111.0767]
[1672793756396,3.16876315,13.596,13.588,111.0767]
[1672793757348,3.16876315,13.596,13.58,30.0]
[1672793757543,55.22,13.595,13.58,30.0]
[1672793757969,3.17166755,13.594,13.58,30.0]
[1672793758183,55.22,13.593,13.58,30.0]
[1672793758613,3.17166755,13.592,13.58,30.0]
[1672793758815,55.23,13.591,13.58,30.0]
[1672793759229,3.17166755,13.592,13.58,30.0]
[1672793759434,3.17166755,13.59,13.58,30.0]
[1672793759657,46.44,13.6,13.58,30.0]
[1672793759873,9.25,13.6,13.58,85.28]
[1672793760070,3.17166755,13.599,13.58,85.28]
[1672793760706,3.17166755,13.599,13.58,30.0]
[1672793760917,55.2,13.598,13.579,109.6439]
[1672793761136,9.29,13.59,13.579,109.6439]
[1672793761345,55.24,13.589,13.572,30.0]
[1672793761560,58.32329999,13.589,13.575,108.1604]
[1672793761768,3.08329999,13.588,13.575,108.1604]
[1672793762301,58.32329999,13.589,13.576,30.0]
[1672793765546,3.08329999,13.588,13.576,30.0]
[1672793765777,3.08329999,13.588,13.576,85.29]
[1672793766106,3.08329999,13.599,13.576,85.29]
[1672793766287,55.2,13.598,13.576,85.29]
[1672793766706,3.08329999,13.597,13.576,85.29]
[1672793769435,9.25,13.6,13.576,85.29]
[1672793770913,3.08329999,13.599,13.576,85.29]
[1672793771549,86.5840588,13.598,13.576,85.29]
[1672793771963,3.08329999,13.597,13.576,85.29]
[1672793772175,55.21,13.596,13.576,85.29]
[1672793772505,58.29329999,13.596,13.576,85.29]
[1672793772904,3.08329999,13.596,13.576,85.29]
[1672793773343,55.2,13.599,13.576,85.29]
[1672793773659,9.28,13.6,13.576,85.29]
[1672793774919,113.4447,13.602,13.576,85.29]
[1672793775122,113.4447,13.602,13.58,9.29]
[1672793775339,55.16,13.609,13.582,30.0]
[1672793775653,9.25,13.61,13.584,30.0]
[1672793775867,9.25,13.61,13.585,75.26]
[1672793776176,2.6792317,13.613,13.585,75.26]
[1672793776177,3.08329999,13.608,13.585,75.26]
[1672793776372,2.6792317,13.613,13.586,30.0]
[1672793776590,2.6792317,13.613,13.587,55.25]
[1672793776793,9.29,13.61,13.585,32.95377697]
[1672793777012,58.27329999,13.602,13.57,31.93911889]
[1672793777228,58.27329999,13.602,13.578,30.0]
[1672793777438,46.45,13.6,13.578,30.0]
[1672793777648,55.2,13.599,13.578,30.0]
[1672793777869,9.26,13.6,13.579,55.28]
[1672793778077,115.0192,13.609,13.58,30.0]
[1672793778804,55.19,13.602,13.58,30.0]
[1672793779020,46.39,13.6,13.578,30.0]
[1672793779232,55.2,13.599,13.578,30.0]
[1672793780807,58.28329999,13.599,13.578,30.0]
[1672793781124,9.29,13.59,13.577,113.2264]
[1672793781449,58.32329999,13.589,13.577,113.2264]
[1672793782182,55.24,13.589,13.578,30.0]
[1672793782388,55.22,13.594,13.578,30.0]
[1672793782816,58.30329999,13.594,13.578,30.0]
[1672793783533,58.30329999,13.594,13.577,113.2264]
[1672793783739,9.29,13.59,13.573,30.0]
[1672793783954,55.24,13.589,13.573,30.0]
[1672793784279,58.32329999,13.589,13.573,30.0]
[1672793784474,3.08329999,13.588,13.573,30.0]
[1672793784896,3.08329999,13.588,13.575,30.0]
[1672793785732,55.2,13.599,13.575,30.0]
[1672793785942,3.08329999,13.598,13.575,30.0]
[1672793786159,55.21,13.597,13.575,30.0]
[1672793786574,3.08329999,13.596,13.575,30.0]
[1672793786801,55.21,13.595,13.575,30.0]
[1672793787229,3.08329999,13.594,13.575,30.0]
[1672793787450,55.22,13.593,13.575,30.0]
[1672793787853,3.08329999,13.592,13.575,30.0]
[1672793788072,55.23,13.591,13.575,30.0]
[1672793788473,3.13261738,13.59,13.575,30.0]
[1672793788689,55.24,13.589,13.575,30.0]
[1672793788915,55.24,13.589,13.574,113.6027]
[1672793789113,3.13261738,13.588,13.574,113.6027]
[1672793789327,55.25,13.587,13.575,30.0]
[1672793789744,3.13261738,13.586,13.575,30.0]
[1672793790582,9.27,13.59,13.575,30.0]
[1672793790791,3.13261738,13.588,13.575,30.0]
[1672793791849,55.2,13.598,13.575,30.0]
[1672793792059,55.2,13.598,13.575,85.3]
[1672793792276,3.13261738,13.596,13.575,30.0]
[1672793792485,55.21,13.595,13.575,30.0]
[1672793792896,3.13261738,13.594,13.575,30.0]
[1672793793213,55.22,13.593,13.575,30.0]
[1672793793429,3.13261738,13.597,13.575,30.0]
[1672793793642,55.21,13.596,13.575,30.0]
[1672793793853,3.13261738,13.592,13.575,30.0]
[1672793794384,55.2,13.599,13.575,30.0]
[1672793794596,3.13261738,13.597,13.575,85.3]
[1672793794799,55.21,13.596,13.575,85.3]
[1672793795315,55.2,13.599,13.575,85.3]
[1672793795525,20.0,13.598,13.575,85.3]
[1672793795756,55.21,13.597,13.575,55.3]
[1672793795958,20.0,13.596,13.574,113.6027]
[1672793796153,3.13261738,13.597,13.575,85.3]
[1672793796365,55.2,13.599,13.577,30.0]
[1672793796588,58.33261738,13.599,13.578,55.28]
[1672793796795,3.13261738,13.598,13.579,30.0]
[1672793797112,55.2,13.599,13.579,30.0]
[1672793797325,55.2,13.599,13.58,55.28]
[1672793797516,55.2,13.599,13.581,30.0]
[1672793797517,3.13261738,13.599,13.581,30.0]
[1672793797727,3.13261738,13.599,13.582,114.0722]
[1672793797952,55.19,13.602,13.583,30.0]
[1672793798377,3.13261738,13.6,13.583,30.0]
[1672793799423,58.33261738,13.6,13.583,30.0]
[1672793799646,5.0,13.617,13.583,30.0]
[1672793799647,9.35,13.61,13.584,20.0]
[1672793799963,3.14907087,13.609,13.585,85.26]
[1672793800268,55.16,13.608,13.587,30.0]
[1672793800474,55.15,13.612,13.588,55.24]
[1672793800675,55.15,13.612,13.589,110.3817]
[1672793800882,3.14907087,13.609,13.59,55.24]
[1672793801220,3.14907087,13.609,13.591,30.0]
[1672793801404,55.16,13.608,13.591,30.0]
[1672793803506,5.0,13.617,13.591,30.0]
[1672793803729,5.0,13.617,13.592,55.23]
[1672793803926,5.0,13.617,13.593,30.0]
[1672793804137,55.15,13.612,13.593,30.0]
[1672793804349,3.14907087,13.609,13.593,30.0]
[1672793804559,58.30907087,13.609,13.593,30.0]
[1672793806148,3.14907087,13.609,13.593,30.0]
[1672793806774,58.30907087,13.609,13.593,30.0]
[1672793806990,55.15,13.612,13.593,30.0]
[1672793808242,3.14907087,13.609,13.593,30.0]
[1672793808457,55.16,13.608,13.593,30.0]
[1672793810021,3.14907087,13.609,13.593,30.0]
[1672793810781,55.15,13.612,13.593,30.0]
[1672793811821,3.14907087,13.608,13.593,30.0]
[1672793812143,55.15,13.612,13.593,30.0]
[1672793812568,20.0,13.611,13.593,30.0]
[1672793812788,55.15,13.61,13.593,30.0]
[1672793812992,20.0,13.609,13.593,30.0]
[1672793813626,20.0,13.611,13.593,30.0]
[1672793813840,55.15,13.61,13.593,30.0]
[1672793814027,20.0,13.609,13.593,30.0]
[1672793814458,9.3,13.62,13.595,30.0]
[1672793814766,3.14907087,13.61,13.595,30.0]
[1672793814979,3.14907087,13.61,13.597,30.0]
[1672793815180,55.16,13.609,13.597,30.0]
[1672793815391,3.14907087,13.61,13.597,30.0]
[1672793815616,12.31,13.61,13.597,30.0]
[1672793815832,20.0,13.609,13.597,30.0]
[1672793816233,23.14907087,13.609,13.596,109.0441]
[1672793816567,55.16,13.608,13.596,109.0441]
[1672793816771,55.16,13.608,13.597,30.0]
[1672793816976,58.30907087,13.608,13.596,109.0441]
[1672793817299,58.30907087,13.608,13.59,264.6]
[1672793817513,12.31,13.6,13.588,30.0]
[1672793817726,75.2,13.599,13.588,30.0]
[1672793817924,20.0,13.599,13.588,30.0]
[1672793819821,23.14907087,13.599,13.588,30.0]
[1672793820037,20.0,13.599,13.588,30.0]
[1672793820868,55.16,13.608,13.588,30.0]
[1672793821079,55.16,13.608,13.59,30.0]
[1672793821379,55.16,13.609,13.59,30.0]
[1672793821820,58.30907087,13.609,13.59,30.0]
[1672793822865,117.9458,13.616,13.59,30.0]
[1672793822866,30.0,13.619,13.59,42.25]
[1672793823082,3.14907087,13.608,13.59,30.0]
[1672793823501,55.17,13.607,13.59,30.0]
[1672793824024,3.14907087,13.606,13.59,30.0]
[1672793824230,55.17,13.605,13.59,30.0]
[1672793825182,61.58,13.61,13.59,30.0]
[1672793825378,23.14907087,13.609,13.59,30.0]
[1672793825914,3.14907087,13.608,13.59,30.0]
[1672793826122,55.17,13.607,13.59,30.0]
[1672793826332,58.30907087,13.608,13.59,30.0]
[1672793826874,61.46,13.62,13.592,30.0]
[1672793827184,8.14907087,13.617,13.594,30.0]
[1672793827371,8.14907087,13.617,13.595,189.1426]
[1672793827911,8.14907087,13.617,13.596,30.0]
[1672793828112,8.14907087,13.617,13.597,55.21]
[1672793828323,8.14907087,13.617,13.598,30.0]
[1672793828544,8.14907087,13.617,13.6,30.0]
[1672793830962,0.0092317,13.613,13.601,75.19]
[1672793831154,5.0,13.617,13.603,30.0]
[1672793831367,5.0,13.617,13.605,30.0]
[1672793831576,5.0,13.617,13.606,75.17]
[1672793831788,5.0,13.617,13.607,30.0]
[1672793832101,5.0,13.617,13.608,55.16]
[1672793832307,5.0,13.617,13.609,30.0]
[1672793832531,5.0,13.617,13.61,55.15]
[1672793832748,5.0,13.617,13.611,30.0]
[1672793833385,44.92476404,13.626,13.611,30.0]
[1672793833578,44.92476404,13.626,13.613,30.0]
[1672793834947,44.92476404,13.626,13.614,55.14]
[1672793835165,44.92476404,13.626,13.615,50.0]
[1672793835379,44.92476404,13.626,13.616,55.13]
[1672793835597,44.92476404,13.626,13.617,30.0]
[1672793835906,12.38,13.64,13.619,30.0]
[1672793836099,44.92476404,13.626,13.62,55.11]
[1672793836306,44.92476404,13.626,13.621,30.0]
[1672793836521,12.38,13.64,13.623,30.0]
[1672793836848,47.60399574,13.634,13.623,30.0]
[1672793837046,47.60399574,13.634,13.624,75.1]
[1672793837375,61.4,13.66,13.625,842.5]
[1672793837572,89.85158404,13.646,13.626,75.09]
[1672793837785,89.85158404,13.646,13.627,30.0]
[1672793838094,148.01065491,13.646,13.629,30.0]
[1672793838311,93.00065491,13.646,13.629,30.0]
[1672793838528,93.00065491,13.646,13.625,812.5]
[1672793838529,61.45,13.64,13.625,812.5]
[1672793838725,75.04,13.639,13.626,30.0]
[1672793838936,78.18907087,13.639,13.626,30.0]
[1672793839146,3.14907087,13.638,13.626,30.0]
[1672793839356,55.04,13.637,13.626,30.0]
[1672793839986,58.18907087,13.637,13.626,30.0]
[1672793840200,58.18907087,13.637,13.625,812.5]
[1672793840616,12.31,13.63,13.625,812.5]
[1672793840830,12.31,13.63,13.617,30.0]
[1672793840831,55.08,13.629,13.617,30.0]
[1672793841063,75.08,13.629,13.617,30.0]
[1672793841583,117.32553234,13.629,13.617,30.0]
[1672793842615,97.32553234,13.629,13.617,30.0]
[1672793842826,42.24553234,13.629,13.617,30.0]
[1672793843053,55.72907087,13.628,13.617,30.0]
[1672793843482,97.97460321,13.628,13.614,115.6963]
[1672793843671,3.14907087,13.627,13.614,115.6963]
[1672793843876,55.09,13.626,13.614,115.6963]
[1672793844727,3.14907087,13.626,13.614,115.6963]
[1672793844934,55.09,13.625,13.614,115.6963]
[1672793845262,55.09,13.625,13.606,22.8005]
[1672793845263,12.31,13.62,13.606,22.8005]
[1672793845455,75.12,13.619,13.607,76.3179]
[1672793846737,75.12,13.619,13.607,30.0]
[1672793846947,3.14907087,13.618,13.606,24.3059]
[1672793847173,75.12,13.619,13.606,24.3059]
[1672793847783,78.26907087,13.619,13.606,24.3059]
[1672793849373,12.31,13.62,13.606,24.3059]
[1672793849570,3.14907087,13.624,13.608,30.0]
[1672793849776,90.46353234,13.626,13.608,30.0]
[1672793849987,42.24553234,13.626,13.61,30.0]
[1672793850747,42.24553234,13.626,13.611,115.4335]
[1672793851060,42.24553234,13.626,13.612,30.0]
[1672793851691,100.48460321,13.626,13.612,30.0]
[1672793852623,12.31,13.62,13.6,87.8692317]
[1672793852832,55.12,13.619,13.603,169.076]
[1672793853160,20.0,13.618,13.603,169.076]
[1672793853352,23.14907087,13.618,13.603,169.076]
[1672793853560,3.14907087,13.617,13.603,169.076]
[1672793853786,58.27907087,13.617,13.603,169.076]
[1672793853999,20.0,13.618,13.603,169.076]
[1672793856939,20.0,13.619,13.603,169.076]
[1672793858295,20.0,13.619,13.604,55.18]
[1672793858506,20.0,13.619,13.605,30.0]
[1672793859460,48.0087,13.624,13.606,75.17]
[1672793859677,48.0087,13.624,13.607,30.0]
[1672793859873,48.0087,13.624,13.608,55.16]
[1672793860079,3.14907087,13.628,13.609,50.0]
[1672793860301,9.16,13.64,13.61,55.15]
[1672793860618,71.7923,13.639,13.611,165.8457]
[1672793860836,55.06,13.633,13.612,55.15]
[1672793861024,102.3675,13.638,13.613,30.0]
[1672793861234,102.3675,13.638,13.614,55.14]
[1672793861442,102.3675,13.638,13.616,30.0]
[1672793861658,126.8323,13.638,13.617,20.0]
[1672793862719,126.8323,13.638,13.618,30.0]
[1672793862934,126.8323,13.638,13.619,55.12]
[1672793863145,126.8323,13.638,13.62,30.0]
[1672793863786,46.2189,13.637,13.62,30.0]
[1672793866623,101.2689,13.637,13.62,30.0]
[1672793867045,46.2189,13.637,13.62,30.0]
[1672793867449,3.14907087,13.631,13.62,30.0]
[1672793868303,55.06,13.633,13.62,30.0]
[1672793868934,3.14907087,13.627,13.62,30.0]
[1672793869246,55.05,13.636,13.62,30.0]
[1672793869658,55.06,13.633,13.62,30.0]
[1672793870075,55.09,13.625,13.614,48.9337]
[1672793870395,58.23907087,13.625,13.614,48.9337]
[1672793870602,3.14907087,13.624,13.614,48.9337]
[1672793871024,55.1,13.623,13.614,48.9337]
[1672793871237,55.1,13.623,13.613,24.6635]
[1672793871441,9.21,13.62,13.605,30.0]
[1672793871652,75.12,13.619,13.603,53.6425]
[1672793871860,78.26907087,13.619,13.603,53.6425]
[1672793872088,3.14907087,13.618,13.603,53.6425]
[1672793872298,55.13,13.617,13.603,53.6425]
[1672793872698,3.14907087,13.616,13.603,53.6425]
[1672793873660,3.14907087,13.616,13.603,30.0]
[1672793874074,55.13,13.615,13.603,30.0]
[1672793874620,3.14907087,13.615,13.603,30.0]
[1672793874807,55.12,13.618,13.603,30.0]
[1672793875018,3.14907087,13.617,13.603,30.0]
[1672793876078,55.12,13.618,13.603,30.0]
[1672793877026,71.0786,13.623,13.603,30.0]
[1672793877027,55.11,13.622,13.603,30.0]
[1672793877218,71.0786,13.623,13.605,30.0]
[1672793877422,23.0281,13.623,13.606,887.67]
[1672793877636,23.0281,13.623,13.607,30.0]
[1672793877858,42.24553234,13.626,13.609,30.0]
[1672793878072,42.24553234,13.626,13.611,30.0]
[1672793878269,45.39460321,13.626,13.611,30.0]
[1672793879964,55.09,13.625,13.611,30.0]
[1672793880264,58.23907087,13.625,13.611,30.0]
[1672793880796,58.23907087,13.625,13.61,116.3004]
[1672793881421,58.23907087,13.625,13.609,46.8158]